Cogmind - Beta 13 @@@ ROGUE MODE // 2024.06.02 @ 18:55:23 Player: BatSpy Result: Destroyed by Y-45 Defender with Beam Rifle Performance ------------- Evolutions (2) 1000 Regions Visited (5) 1000 Robots Destroyed (42) 210 Value Destroyed (1467) 1467 Prototype IDs (5) 100 Alien Tech Used (0) 0 Bonus (0) 0 TOTAL SCORE: 3777 Bonus ------- None Cogmind --------- Core Integrity 0/550 Matter 290/300 Energy 75/100 System Corruption 0% Temperature Cool (9) Movement Walking (190) Ox1 Location -8/Storage Parts ------- > --- POWER (2) -------- (None) > --- PROPULSION (4) --- Aluminum Leg Carbon-fiber Leg Carbon-fiber Leg Carbon-fiber Leg > --- UTILITY (3) ------ Melee Analysis Suite Reactive Plating Medium Reactive Plating > --- WEAPON (2) ------- Chainsword Chainsword > --- INVENTORY (5) ---- Improved Heat Sink Advanced Weight Redist. System Improved Signal Interpreter Hacking Suite Great Maul Peak State ------------ > --- POWER ------------ Nuclear Core > --- PROPULSION ------- Carbon-fiber Leg Carbon-fiber Leg Armored Wheel Improved VTOL Module > --- UTILITY ---------- Small Storage Unit Melee Analysis Suite Medium Reactive Plating > --- WEAPON ----------- Chainsword Chainsword > --- INVENTORY -------- Aluminum Leg Improved Heat Sink Improved Heat Sink Reactive Plating Hacking Suite Component Analysis Suite [Rating: 32] Favorites ----------- Power Ion Engine Engine Ion Engine Power Core Nuclear Core Propulsion Titanium Leg Leg Titanium Leg Wheel Armored Wheel Flight Unit Improved VTOL Module Utility Small Storage Unit Device Improved Heat Sink Storage Small Storage Unit Processor Melee Analysis Suite Protection Medium Reactive Plating Weapon Chainsword Energy Gun Small Laser Energy Cannon Plasma Cannon Ballistic Gun Minigun Ballistic Cannon Gauss Cannon Launcher Grenade Launcher Slashing Weapon Chainsword Build | -11 -10 -9 -9 -8 -8 ------- Run | Yrd Mat Mat Min Mat Sto Slots Evolved 4 | . . 2 . 2 . Power 1 | . . . . 1 . Propulsion 2 | . . 2 . . . Utility 1 | . . . . 1 . Weapon . | . . . . . . Parts Attached 55 | 8 4 16 4 18 5 Power 6 | 1 . 2 1 2 . Engine 5 | 1 . 2 1 1 . Core 1 | . . . . 1 . Reactor . | . . . . . . Propulsion 24 | 4 1 10 2 5 2 Treads . | . . . . . . Leg 15 | 2 1 6 1 3 2 Wheel 8 | 2 . 4 1 1 . Hover . | . . . . . . Flight 1 | . . . . 1 . Utility 13 | 1 1 1 1 6 3 Device 6 | . 1 . 1 3 1 Storage 1 | 1 . . . . . Processor 2 | . . 1 . 1 . Hackware . | . . . . . . Protection 4 | . . . . 2 2 Artifact . | . . . . . . Weapon 12 | 2 2 3 . 5 . Energy Gun 3 | 1 1 . . 1 . Energy Cannon 1 | . . . . 1 . Ballistic Gun 4 | 1 . 3 . . . Ballistic Cannon 1 | . . . . 1 . Launcher 1 | . 1 . . . . Special Weapon . | . . . . . . Impact Weapon . | . . . . . . Slashing Weapon 2 | . . . . 2 . Piercing Weapon . | . . . . . . Special Melee Weapon . | . . . . . . Unidentified Prototypes 1 | . . . . 1 . Parts Lost 15 | . 1 1 . 11 2 Power 4 | . . 1 . 2 1 Propulsion 4 | . . . . 4 . Utility 3 | . . . . 2 1 Weapon 4 | . 1 . . 3 . Highest Loss Streak 5 | . 1 1 . 5 2 To Critical Strikes 1 | . . . . 1 . Average Slot Usage (%) 83 | . 82 93 79 71 85 Engine 6 | . 14 10 6 3 . Core 2 | . . . . 3 4 Leg 30 | . 28 37 41 18 35 Wheel 3 | . . 1 2 8 . Device 3 | . . 3 1 5 3 Storage 9 | . 14 11 11 9 5 Processor 5 | . . 7 5 3 9 Protection 3 | . . . . 5 9 Energy Gun 1 | . 6 2 . . . Ballistic Gun 7 | . 14 19 11 . . Slashing Weapon 6 | . . . . 8 18 Naked Turns . | . . . . . . Heaviest Build 39 | 14 15 17 16 39 38 Greatest Support 55 | 26 20 34 52 52 55 Greatest Overweight (x) 4 | . . 4 . 3 1 Average Overweight (x) . | . . . . . . Largest Inventory Capacity 8 | 8 8 8 8 8 8 Average Capacity 7 | 6 8 8 8 8 6 Most Carried 8 | 4 5 8 8 8 5 Average Carried 5 | 1 2 6 7 5 4 Final Capacity 8 | 8 8 8 8 8 5 Final Carried 8 | 1 2 8 8 3 5 Class Distribution -------------------- 66% | Mutant 32% | Gladiator Dominant Class ---------------- Mutant | -10/Materials Mutant | -9/Materials Mutant | -9/Mines Mutant | -8/Materials Gladiator | -8/Storage Resources | -11 -10 -9 -9 -8 -8 ----------- Run | Yrd Mat Mat Min Mat Sto Matter Collected 1131 | 209 53 394 34 401 40 Remotely . | . . . . . . Salvage Created 1666 | . 237 508 . 497 424 Parts 90 | . 14 35 . 23 18 Haulers Intercepted . | . . . . . . Recyclers Shooed 1 | . . 1 . . . Parts Field Recycled . | . . . . . . Retrieved Matter . | . . . . . . Parts Self-Destructed . | . . . . . . Prevented . | . . . . . . Kills | -11 -10 -9 -9 -8 -8 ------- Run | Yrd Mat Mat Min Mat Sto Combat Hostiles Destroyed 34 | . 7 8 . 12 7 Melee 11 | . . . . 4 7 Guns 12 | . 4 8 . . . Cannons 8 | . . . . 8 . AOE 3 | . 3 . . . . Classes Destroyed 9 | . 1 6 . 2 . Worker 1 | . . 1 . . . Recycler 2 | . . 1 . . 1 Mechanic 1 | . . . . 1 . Operator 2 | . . 1 . 1 . Watcher 2 | . . 1 . . 1 Swarmer 5 | . . 1 . 4 . Grunt 22 | . 7 3 . 5 7 Sentry 6 | . . 4 . 2 . Hunter 1 | . . . . 1 . Best Kill Streak 7 | . 5 5 . 5 7 Combat Bots Only 7 | . 5 4 . 5 7 Max Kills in Single Turn 3 | . 3 2 . 1 1 Gunslinging . | . . . . . . Exploded 2 | . 2 . . . . Melee 1 | . . . . 1 1 Uniques/NPCs Destroyed . | . . . . . . Combat | -11 -10 -9 -9 -8 -8 -------- Run | Yrd Mat Mat Min Mat Sto Hostile Shots Fired 391 | . 31 100 . 197 63 Missed 99 | . 6 28 . 50 15 Damage Taken 3640 | . 284 789 . 1834 733 Core 732 | . 55 123 . 367 187 Absorbed by Shields . | . . . . . . Ignored by Resistances 137 | . . . . 112 25 Regen/Repaired (Parts) 193 | . . . . . 193 Core Remaining (%) 82 | 100 78 . 69 . . Volleys Fired 83 | . 17 28 . 38 . Largest 2 | . 2 2 . 2 . Hottest 149 | . 50 60 . 149 . Shots Fired 132 | . 20 56 . 56 . Gun 83 | . 17 56 . 10 . Cannon 46 | . . . . 46 . Launcher 3 | . 3 . . . . Special . | . . . . . . Kinetic 98 | . 17 53 . 28 . Thermal 31 | . . 3 . 28 . Explosive 3 | . 3 . . . . Electromagnetic . | . . . . . . Robot Hit Streak 8 | . 8 4 . 6 . Robot Miss Streak 4 | . 2 3 . 4 . Penetration Max . | . . . . . . Secondary Targets 1 | . . 1 . . . Max Gunslinging Chain 1 | . . 1 . . . Shots Hit Robots 113 | . 12 33 . 43 25 Core Hits 53 | . 10 18 . 17 8 Critical Kills 1 | . . 1 . . . Critical Parts Destroyed . | . . . . . . Critical Strikes 7 | . . 1 . 3 3 Burn 1 | . . . . 1 . Destroy 1 | . . 1 . . . Blast 1 | . . . . 1 . Sever 4 | . . . . 1 3 Melee Attacks 49 | . . . . 16 33 Impact . | . . . . . . Slashing 49 | . . . . 16 33 Piercing . | . . . . . . Sneak Attacks 2 | . . . . 1 1 Combat Hostiles . | . . . . . . Follow-up Attacks 5 | . . . . 2 3 Damage Inflicted 3246 | . 388 584 . 1335 939 Guns 870 | . 170 567 . 133 . Cannons 777 | . . . . 777 . Explosions 218 | . 218 . . . . Melee 1364 | . . . . 425 939 Ramming 17 | . . 17 . . . Kinetic 1136 | . 170 547 . 419 . Thermal 511 | . . 20 . 491 . Explosive 218 | . 218 . . . . Electromagnetic . | . . . . . . Impact . | . . . . . . Slashing 1364 | . . . . 425 939 Piercing . | . . . . . . Highest Corruption . | . . . . . . Average Corruption . | . . . . . . Corruption Purged . | . . . . . . Corruption Blocked . | . . . . . . Overload Shots . | . . . . . . Overflow Damage 108 | . 3 . . 55 50 Projectiles 7 | . . . . 7 . Explosions 3 | . 3 . . . . Melee 98 | . . . . 48 50 Knockbacks 9 | . . . . 9 . Impact . | . . . . . . Kinetic 7 | . . . . 7 . Secondary 2 | . . . . 2 . Self-Inflicted Damage . | . . . . . . Shots . | . . . . . . Rammed . | . . . . . . Targets Rammed 9 | . . 9 . . . Kicked 9 | . . 9 . . . Crushed . | . . . . . . Highest Temperature 444 | . 2 17 . 444 10 Average Temperature 160 | . 2 6 . 239 5 Received Heat Transfer 1542 | . 153 282 . 648 459 Effects 11 | . . . . 11 . Shutdowns 4 | . . . . 4 . Energy Bleed 3 | . . . . 3 . Interference 3 | . . . . 3 . Short Circuit 1 | . . . . 1 . Siege Activations . | . . . . . . Robots Corrupted . | . . . . . . Combat Hostiles . | . . . . . . Parts Fried . | . . . . . . Impact Corruptions . | . . . . . . Robots Melted . | . . . . . . Combat Hostiles . | . . . . . . Parts Melted 1 | . . . . 1 . Heat Transferred 1083 | . . 50 . 1033 . Parts Sabotaged . | . . . . . . Parts Stolen . | . . . . . . Parts Stripped . | . . . . . . Power Chain Reactions . | . . . . . . Alert | -11 -10 -9 -9 -8 -8 ------- Run | Yrd Mat Mat Min Mat Sto Peak Influence 361 | . 173 222 82 361 313 Initial 112 | . . 72 82 31 112 Average 152 | . 72 90 82 230 192 Maximum Alert Level 1 | . . 1 . 1 1 Low Security (%) 70 | 100 100 95 100 33 65 Level 1 29 | . . 4 . 66 34 Level 2 . | . . . . . . Level 3 . | . . . . . . Level 4 . | . . . . . . Level 5 . | . . . . . . High Security . | . . . . . . Max Security . | . . . . . . Squads Dispatched 9 | . 2 1 1 3 2 Investigation 4 | . 2 . 1 . 1 Extermination . | . . . . . . Reinforcement 5 | . . 1 . 3 1 Assault . | . . . . . . Garrison . | . . . . . . Intercept . | . . . . . . Searches Triggered . | . . . . . . Construction Impeded 1 | . . . . 1 . Haulers Reinforced . | . . . . . . Active Scanning Responses . | . . . . . . Cargo Convoy Interrupts . | . . . . . . Stealth | -11 -10 -9 -9 -8 -8 --------- Run | Yrd Mat Mat Min Mat Sto Distress Signals 3 | . . 1 . 2 . Communications Jammed . | . . . . . . Distress Signals . | . . . . . . Times Spotted 70 | . 7 21 1 27 14 Peak Tracking Total 7 | . 5 7 1 7 7 Tactical Retreats 4 | . . 1 . 2 1 Traps | -11 -10 -9 -9 -8 -8 ------- Run | Yrd Mat Mat Min Mat Sto Traps Triggered 4 | . 2 2 . . . Indirectly . | . . . . . . Trap Hack Attempts . | . . . . . . Triggered . | . . . . . . Disarmed . | . . . . . . Reprogrammed . | . . . . . . Reused . | . . . . . . Traps Extracted . | . . . . . . Installed . | . . . . . . Triggered . | . . . . . . Machines | -11 -10 -9 -9 -8 -8 ---------- Run | Yrd Mat Mat Min Mat Sto Machines Disabled 6 | . . . . 5 1 Max in Single Turn 1 | . . . . 1 1 Machines Repaired . | . . . . . . Machines Dismantled . | . . . . . . Machines Sabotaged . | . . . . . . Overloaded Fab Kills . | . . . . . . Hacking | -11 -10 -9 -9 -8 -8 --------- Run | Yrd Mat Mat Min Mat Sto Machines Accessed 12 | . . 3 1 1 7 Terminals 8 | . . 2 . 1 5 Fabricators . | . . . . . . Repair Stations 1 | . . . . . 1 Recycling Units 1 | . . . . . 1 Scanalyzers 1 | . . 1 . . . Garrison Access . | . . . . . . Total Hacks 38 | . . 11 1 2 24 Successful 26 | . . 8 1 1 16 Failed 12 | . . 3 . 1 8 Catastrophic . | . . . . . . Database Lockouts . | . . . . . . Manual 20 | . . 6 . 2 12 Terminals 27 | . . 6 . 2 19 Fabricators . | . . . . . . Repair Stations 4 | . . . . . 4 Recycling Units 1 | . . . . . 1 Scanalyzers 5 | . . 5 . . . Garrison Access . | . . . . . . Terminal Hacks 9 | . . . 1 1 7 Part Schematic 2 | . . . . . 2 Prototype ID Bank 2 | . . . . . 2 Open Door 1 | . . . 1 . . Terminal Index 2 | . . . . 1 1 Locate Traps 1 | . . . . . 1 Dispatch Records 1 | . . . . . 1 Fabricator Hacks . | . . . . . . Repair Station Hacks 2 | . . . . . 2 Scan Component 1 | . . . . . 1 Repair 1 | . . . . . 1 Recycling Unit Hacks 1 | . . . . . 1 Report Inventory 1 | . . . . . 1 Scanalyzer 5 | . . 5 . . . Insert Component 3 | . . 3 . . . Analyze 2 | . . 2 . . . Garrison Access Hacks . | . . . . . . Unauthorized Hacks 9 | . . 3 . . 6 Terminals 9 | . . 3 . . 6 Assimilate 2 | . . 1 . . 1 Botnet 7 | . . 2 . . 5 Fabricators . | . . . . . . Repair Stations . | . . . . . . Recycling Units . | . . . . . . Scanalyzers . | . . . . . . Garrison Access . | . . . . . . Data Cores Recovered 1 | . . 1 . . . Used . | . . . . . . Hacking Detections 7 | . . 3 . . 4 Full Trace Events 2 | . . 1 . . 1 Feedback Events . | . . . . . . Feedback Blocked . | . . . . . . Robot Schematics Acquired . | . . . . . . Robots Built . | . . . . . . Authchips . | . . . . . . Time . | . . . . . . Total Robot Build Rating . | . . . . . . Part Schematics Acquired 4 | . . 2 . . 2 Parts Built . | . . . . . . Authchips . | . . . . . . Time . | . . . . . . Total Part Build Rating . | . . . . . . Parts Repaired 1 | . . . . . 1 Time 44 | . . . . . 44 Parts Recycled . | . . . . . . Recycled Matter . | . . . . . . Retrieved Matter . | . . . . . . Retrieved Components . | . . . . . . Parts Scanalyzed 2 | . . 2 . . . Part Schematics Acquired 2 | . . 2 . . . Parts Damaged . | . . . . . . Bothacking | -11 -10 -9 -9 -8 -8 ------------ Run | Yrd Mat Mat Min Mat Sto Used RIF Installer . | . . . . . . Robots Hacked . | . . . . . . Non-combat . | . . . . . . Combat . | . . . . . . Robot Hacks Applied . | . . . . . . Relay Couplers Released . | . . . . . . Fabnet Peak Effective % . | . . . . . . Robots Rewired . | . . . . . . Allies Hacked . | . . . . . . Hacks Repelled . | . . . . . . Allies | -11 -10 -9 -9 -8 -8 -------- Run | Yrd Mat Mat Min Mat Sto Total Allies . | . . . . . . Largest Group . | . . . . . . Highest-Rated Group . | . . . . . . Highest-Rated Ally . | . . . . . . Total Orders . | . . . . . . Ally Attacks . | . . . . . . Total Damage . | . . . . . . Kills . | . . . . . . Allies Corrupted . | . . . . . . Allies Melted . | . . . . . . Intel | -11 -10 -9 -9 -8 -8 ------- Run | Yrd Mat Mat Min Mat Sto Robot Analysis Total . | . . . . . . Derelict Logs Recovered 1 | . . . 1 . . Drone Launches . | . . . . . . Drone Recoveries . | . . . . . . Exploration | -11 -10 -9 -9 -8 -8 ------------- Run | Yrd Mat Mat Min Mat Sto Turns Passed 2116 | 66 161 663 82 659 485 Spaces Moved 1233 | 47 96 388 52 374 276 Core 10 | 6 . 4 . . . Treads . | . . . . . . Legs 1080 | 23 96 372 52 261 276 Wheels 143 | 18 . 12 . 113 . Hover . | . . . . . . Flight . | . . . . . . Fastest Speed 50 | 50 120 105 126 120 120 Average Speed 129 | 99 120 128 129 127 141 Slowest Speed 250 | 120 120 250 130 190 190 Overloaded Moves . | . . . . . . Propulsion Burnouts . | . . . . . . Robots Hopped . | . . . . . . Cave-ins Triggered . | . . . . . . Exploration Rate (%) 21 | 3 23 29 11 30 32 Regions Visited 5 Branch Regions 2 Pre-discovered Areas . | . . . . . . Known Exits Taken . | . . . . . . Unknown Exits Taken 5 | 1 1 1 1 1 . Scrap Searched . | . . . . . . Spaces Dug . | . . . . . . Terrain Destroyed 29 | . 15 . . 14 . Melee . | . . . . . . Projectile 14 | . . . . 14 . AOE 15 | . 15 . . . . Terrain Rammed . | . . . . . . Walls Destroyed . | . . . . . . Machines Disabled . | . . . . . . Actions | -11 -10 -9 -9 -8 -8 --------- Run | Yrd Mat Mat Min Mat Sto Total 1575 | 67 121 509 70 480 328 Wait 69 | . . 34 . 24 11 Move 1228 | 46 95 387 51 373 276 Hop . | . . . . . . Pick Up 59 | 10 4 22 6 12 5 Fast Attach 2 | . . . 1 . 1 Attach 40 | 8 2 13 1 15 1 Detach . | . . . . . . Swap 13 | . 2 3 2 3 3 Drop 32 | 3 1 13 9 3 3 Fire 83 | . 17 28 . 38 . Melee 40 | . . . . 12 28 Ram . | . . . . . . Kick 9 | . . 9 . . . Crush . | . . . . . . Escape Stasis . | . . . . . . Rewire . | . . . . . . Trap . | . . . . . . Miscellaneous . | . . . . . . Route ------- -11/Scrapyard -10/Materials (discovered 2 exits: *Mat / [*Min]) -9/Materials (discovered 2 exits: *Min x2) -9/Mines -8/Materials -8/Storage History --------- Turn | Location | Event 7 | -11/Scrapyard | Discovered new exit (range 16) 67 | -11/Scrapyard | Entered Materials 131 | -10/Materials | Discovered new exit (range 7) 153 | -10/Materials | Discovered new exit (range 10) 228 | -10/Materials | Entered another Materials area 228 | -9/Materials | Evolved 2 slots: Propulsion x2 305 | -9/Materials | Build established: Mutant 801 | -9/Materials | Discovered new exit (range 15) 873 | -9/Materials | Discovered new exit (range 14) 891 | -9/Materials | Entered Mines 899 | -9/Mines | Learned Materials security intel 902 | -9/Mines | Discovered new exit (range 13) 918 | -9/Mines | Met a Derelict shopkeep closing up shop 973 | -9/Mines | Entered Materials 973 | -8/Materials | Evolved 2 slots: Power x1, Utility x1 1210 | -8/Materials | Lost 4 parts (1p2n1w) 1255 | -8/Materials | Core integrity fell below 50% 1282 | -8/Materials | Lost 5 parts (1p2n2w) 1365 | -8/Materials | Discovered new exit (range 14) 1632 | -8/Materials | Entered Storage 1710 | -8/Storage | Build established: Gladiator 1820 | -8/Storage | Repaired Med. Reactive Plating? 1858 | -8/Storage | Core integrity fell below 20% 1922 | -8/Storage | Destroyed 7 combat bots 2117 | -8/Storage | Destroyed by Y-45 Defender with Beam Rifle Last Messages --------------- 01981_ Acquired Adv. Weight Redist. System. 02010_ R-06 Scavenger collects Aluminum Leg. 02012_ Sneak attack on R-06 Scavenger. 02012_ Destroyed Com. Wheel. 02012_ R-06 Scavenger destroyed. 02032_ Connecting with Recycling Unit... >>Recycling(Report) Matter reserves: 164 Inventory: Imp. Heat Sink (7%) Imp. Heat Sink (95%) Aluminum Leg (82%) Particle Gun (94%) Imp. Heat Sink (85%) Particle Gun (96%) Particle Gun (96%) Aluminum Leg (96%) Particle Gun (84%) 02062_ Critical hit (Burn: +37). 02101_ K-01 Serf collects debris. Map ----- +----------------------------------------------------+ | ?????????????????????????????????????????? | | ?????????????????????????????????????????? | | ?????????????????????????????????????????? | | ?????????????????????????????????????????? | | #????????????????????????????????????????? | | ? ?#??????????????????????????????????? | | #??????????????????????????????????? | | #??????????????????????????????????? | | "??????????????????????????????????? | | ? """ ???????????????????????????????????? | | ? """ ???????????????????????????????????? | | ??"""?????????????#??????????????????????? | | ?? ??????????? #??????????????????????? | | ###+########### #??????????????????????? | | #??????????????????????? | | #??????###?????????????? | | % ??????????????? | | ##### #####/#########?# ??????????????? | | ??#"" # #?????# ??????????????? | | ??#"T # """ #?????# ??????????????? | | ??#"" # "]""!" #?????+ ??????????????? | | ##### # "!""!" #?????# ??????????????? | | """ # # "=""!" #?????# #???????#??????? | | "R" # # " "" " #?????+ #????? #??????? | | " "%#= # """ #?????# #??? #??????? | | %+%%=+ #######@## #??????? | | #=! ########### Y + #??????? | | ]!%### ######????# ##### #??????? | | ]!/#?# ## #????# ##/#???#? #??????? | | ]! #?# ## #????# # ? #??#####??????? | | #####?# ## ?????# # #?????????????? | | ####### ##/######## # #?????????????? | | + """ #?????????????? | | ##################### """ #?????????????? | | ????????????????????#= """ ?????????????? | | ????????????????????#########????????????? | | ?????????????????????????????????????????? | | ?????????????????????????????????????????? | | | | | | | | | | | | | | | | | | | | | | | | | +----------------------------------------------------+ Best States ------------- Heat Dissipation 59 Energy Generation 15 Energy Capacity 275 Matter Stores 300 Matter Capacity 300 Sight Range 20 Terrain Scan Density 10 Armor Coverage 225 Resistance: KI 30 Evasion (%) 55 Melee Accuracy 5 Item Schematics ----------------- Arm. Wheel | -9/Materials | Scanalyzed Reactive Plating | -9/Materials | Scanalyzed Shock Absorption System | -8/Storage | Hacked Coil Gun | -8/Storage | Hacked Robot Schematics ------------------ None Fabricated ------------ Nothing Alien Tech Used ----------------- None Achievements -------------- None Challenges ------------ None Game ------ Seed HellfireHardlightRail Manual? 0 Play Time 00:27:03 Cumulative 30.1 hours Start 2024.06.02 @ 00:13:19 End 2024.06.02 @ 18:55:23 Sessions 5 Manual Loads 0 Difficulty Rogue Special Mode None Game No. 56 Rogue 56 Adventurer 0 Explorer 0 Win Type - Total 0 Types 0/0/0/0/0/0/0/0/0 Lore% 24 Gallery% 36 Achievement% 28 Wizard Run 0 Options --------- Layout 1 ASCII 0 Keyboard 0 Movement Mouse Keybinds 0 Fullscreen 2 Font 32/Smallcaps Map View 50x35 Zoom Use 0% Tactical HUD 1 Map Filters NONE Filters NONE Steam 1 RUN: c1819ff1-2eba-4ff8-af80-77b5ea808d71